bitfinex-derivatives/quotes_ETHF0:USTF0_20250316
["timestamp","ask_amount","ask_price","bid_price","bid_amount"]
[1742116887576,1.04191,1919.6,1919.5,1.0419]
[1742116887771,1.04191,1919.5,1919.4,4.24974]
[1742116889784,1.04191,1919.5,1919.4,5.69544]
[1742116890084,1.7499,1919.6,1919.5,1.04191]
[1742116890476,1.7499,1919.6,1919.5,2.48761]
[1742116892981,0.708,1919.6,1919.5,2.48761]
[1742116893381,1.04179,1919.8,1919.7,1.04178]
[1742116893786,1.0418,1919.7,1919.6,2.39661]
[1742116893984,1.04179,1919.8,1919.7,1.04178]
[1742116894991,1.0418,1919.7,1919.6,2.39661]
[1742116895486,3.9275,1919.9,1919.7,1.04176]
[1742116895487,1.0418,1919.8,1919.7,1.04176]
[1742116895792,1.0418,1919.7,1919.6,1.3548]
[1742116896095,1.04186,1919.6,1919.5,1.04188]
[1742116896285,1.04186,1919.6,1919.5,2.46458]
[1742116896687,1.04186,1919.6,1919.5,1.04188]
[1742116897393,1.04186,1919.6,1919.5,2.46458]
[1742116897694,1.04185,1919.7,1919.6,1.04181]
[1742116898393,2.37505,1919.7,1919.6,1.04181]
[1742116899592,1.04186,1919.6,1919.5,2.46456]
[1742116899788,2.37616,1919.6,1919.5,2.46456]
[1742116902394,2.37616,1919.6,1919.5,3.18836]
[1742116903290,1.3343,1919.6,1919.5,3.18836]
[1742116904495,2.46924,1919.7,1919.6,1.04186]
[1742116904795,2.46924,1919.7,1919.6,3.13276]
[1742116905800,1.4274,1919.7,1919.6,3.13276]
[1742116906193,3.9213,1919.8,1919.6,3.13276]
[1742116906194,3.2078,1919.8,1919.7,1.0418]
[1742116906391,3.2078,1919.8,1919.7,2.4116]
[1742116909603,1.3185,1920.1,1920.0,1.04164]
[1742116910299,1.3185,1920.1,1920.0,2.47774]
[1742116910997,2.36009,1920.1,1920.0,2.47774]
[1742116911202,1.3185,1920.1,1920.0,2.47774]
[1742116912295,4.98631901,1920.3,1920.2,1.04153]
[1742116912500,5.38701901,1920.3,1920.2,1.04153]
[1742116913001,5.38701901,1920.3,1920.2,2.45063]
[1742116913203,6.42849901,1920.3,1920.2,2.45063]
[1742116913999,5.38701901,1920.3,1920.2,2.45063]
[1742116914704,6.42849901,1920.3,1920.2,2.45063]
[1742116914897,6.42849901,1920.3,1920.2,1.4091]
[1742116915405,6.42849901,1920.3,1920.2,2.45063]
[1742116915702,6.42849901,1920.3,1920.2,1.4091]
[1742116916003,6.42849901,1920.3,1920.2,2.45063]
[1742116920002,6.42849901,1920.3,1920.2,1.4091]
[1742116920210,1.04162,1920.2,1920.1,1.04156]
[1742116920411,2.46902,1920.2,1920.1,1.04156]
[1742116922513,1.04159,1920.1,1920.0,2.4111]
[1742116922713,3.15559,1920.1,1920.0,2.4111]
[1742116928622,1.0417,1919.9,1919.8,1.70972]
[1742116929008,3.09608,1920.0,1919.9,1.0417]
[1742116929210,1.74048,1920.0,1919.9,1.0417]
[1742116930014,3.10948,1920.0,1919.9,2.37]
[1742116930318,3.10948,1920.0,1919.9,1.3283]
[1742116930613,3.10948,1920.0,1919.9,2.37]
[1742116933020,1.369,1920.0,1919.9,2.37]
[1742116933320,1.369,1920.0,1919.9,3.0938]
[1742116933523,4.24944,1920.1,1920.0,1.04164]
[1742116933716,5.67394,1920.1,1920.0,2.45864]
[1742116933917,4.6323,1920.1,1920.0,2.45864]
[1742116934116,5.67389,1920.1,1920.0,2.45864]
[1742116934821,4.6323,1920.1,1920.0,2.45864]
[1742116935222,5.67389,1920.1,1920.0,2.45864]
[1742116937621,2.46609,1920.1,1920.0,2.45864]
[1742116943329,1.04156,1920.2,1920.1,1.04153]
[1742116943524,2.49636,1920.2,1920.1,1.04153]
[1742116943730,2.49636,1920.2,1920.1,2.039]
[1742116943929,2.49636,1920.2,1920.1,3.08059]
[1742116955635,1.04159,1920.1,1920.0,1.04162]
[1742116955833,2.43399,1920.1,1920.0,1.04162]
[1742116957541,2.43399,1920.1,1920.0,1.04164]
[1742116967743,1.3924,1920.1,1920.0,1.04164]
[1742116968044,7.19767901,1920.3,1920.0,1.04164]
[1742116968045,1.04156,1920.2,1920.1,1.04154]
[1742116968244,1.04156,1920.2,1920.1,3.74594]
[1742116968442,4.54351901,1920.3,1920.2,1.04153]
[1742116968745,4.25709901,1920.3,1920.2,2.39623]
[1742116970647,1.04929901,1920.3,1920.2,2.39623]
[1742116970946,1.04929901,1920.3,1920.2,1.3547]
[1742116971143,1.77159901,1920.3,1920.2,1.3547]
[1742116971350,1.04159,1920.1,1920.0,2.39632]
[1742116972247,2.47859,1920.1,1920.0,2.39632]
[1742116972650,3.33392901,1920.3,1920.0,2.39632]
[1742116972651,0.00781901,1920.3,1920.2,1.04153]
[1742116972843,1.04929901,1920.3,1920.2,1.04153]
[1742116973142,2.48629901,1920.3,1920.2,2.49963]
[1742116973348,1.44481901,1920.3,1920.2,3.17903]
[1742116973548,0.00781901,1920.3,1920.2,3.17903]
[1742116975834,0.00781901,1920.3,1920.2,6.49803]
[1742116979753,1.39061901,1920.3,1920.2,6.49803]
[1742116980454,0.00781901,1920.3,1920.2,6.49803]
[1742116983554,1.41621901,1920.3,1920.2,6.49803]
[1742116988661,1e-08,1920.3,1920.2,6.49803]
[1742116990450,1.41140001,1920.3,1920.2,6.49803]
[1742116991251,2.45288001,1920.3,1920.2,6.49803]
[1742116991461,1.41140001,1920.3,1920.2,6.49803]
[1742116991858,2.45288001,1920.3,1920.2,6.49803]
[1742116992063,2.09740001,1920.3,1920.2,6.49803]
[1742116992955,1.41140001,1920.3,1920.2,6.49803]
[1742116993953,1e-08,1920.3,1920.2,6.49803]
[1742117002366,1e-08,1920.3,1920.2,8.99803]
[1742117005263,1e-08,1920.3,1920.2,12.20583]
[1742117007871,1e-08,1920.3,1920.2,9.70583]
[1742117008768,1e-08,1920.3,1920.2,9.69483]
[1742117010471,1e-08,1920.3,1920.2,6.38683]
[1742117010675,1e-08,1920.3,1920.2,9.69383]
[1742117011163,1e-08,1920.3,1920.2,5.80863]
[1742117012761,1e-08,1920.3,1920.2,6.51013]
[1742117015278,1e-08,1920.3,1920.2,4.35053]
[1742117017189,1.38490001,1920.3,1920.2,4.35053]
[1742117018671,1.38490001,1920.3,1920.2,5.00883]
[1742117018867,1.38490001,1920.3,1920.2,8.21663]
[1742117019083,1.38490001,1920.3,1920.2,9.65043]
[1742117023083,1.38490001,1920.3,1920.2,6.44263]
[1742117023286,1.38490001,1920.3,1920.2,6.43663]
[1742117023483,1.38490001,1920.3,1920.2,5.77833]
[1742117025677,1.38490001,1920.3,1920.2,1.04153]
[1742117025678,2.42638001,1920.3,1920.2,1.04153]
[1742117025886,1.04159,1920.1,1920.0,7.55041]
[1742117026188,1.04159,1920.1,1920.0,3.2078]
[1742117026585,2.44709,1920.1,1920.0,3.2078]
[1742117026778,2.44709,1920.1,1920.0,4.24944]
[1742117027779,2.44709,1920.1,1920.0,1.04164]
[1742117030379,1.04169,1920.0,1919.9,1.04164]
[1742117030580,2.38309,1920.0,1919.9,1.04164]
[1742117031082,1.3414,1920.0,1919.9,2.48104]
[1742117031278,1.3414,1920.0,1919.9,3.17104]
[1742117034986,2.44044,1920.2,1920.1,1.04159]
[1742117036388,3.83654,1920.2,1920.1,2.39999]
[1742117036889,3.83653,1920.2,1920.1,2.39999]
[1742117037080,2.795,1920.2,1920.1,2.39999]
[1742117037688,3.83653,1920.2,1920.1,2.39999]
[1742117038190,2.795,1920.2,1920.1,2.39999]
[1742117038390,2.0659,1920.2,1920.1,2.39999]
[1742117039699,3.10743,1920.2,1920.1,2.39999]
[1742117039898,2.0659,1920.2,1920.1,2.39999]
[1742117043196,3.10743,1920.2,1920.1,2.39999]
[1742117044294,3.10743,1920.2,1920.1,1.3584]
[1742117044999,1.04165,1920.1,1920.0,1.04162]
[1742117045191,2.37865,1920.1,1920.0,1.04162]
[1742117047897,2.37865,1920.1,1920.0,2.39312]
[1742117052700,2.37865,1920.1,1920.0,1.3515]
[1742117053094,2.37865,1920.1,1920.0,2.39314]
[1742117054099,1.337,1920.1,1920.0,2.39314]
[1742117054294,4.24930001,1920.3,1920.2,1.04153]
[1742117055003,4.24930001,1920.3,1920.2,1.76453]
[1742117055298,4.24930001,1920.3,1920.2,0.723]
[1742117055497,1.04153,1920.2,1920.1,2.43784]
[1742117055700,3.04383,1920.2,1920.1,1.04154]
[1742117057198,3.04383,1920.2,1920.0,0.723]
[1742117057199,1.04159,1920.1,1920.0,1.7646]
[1742117057391,2.49839,1920.1,1920.0,1.7646]
[1742117057800,1.4568,1920.1,1920.0,1.7646]
[1742117058403,1.70806,1920.2,1920.1,1.04159]
[1742117058599,1.04159,1920.1,1920.0,1.7646]
[1742117059503,2.49839,1920.1,1920.0,1.7646]
[1742117060404,1.4568,1920.1,1920.0,1.7646]
[1742117060704,2.49839,1920.1,1920.0,1.7646]
[1742117060895,1.4568,1920.1,1920.0,1.7646]
[1742117061092,2.49839,1920.1,1920.0,1.7646]
[1742117061500,1.4568,1920.1,1920.0,1.7646]
[1742117063398,2.49839,1920.1,1920.0,1.7646]
[1742117063805,1.4568,1920.1,1920.0,1.7646]
[1742117064699,0.6665,1920.2,1920.1,1.04159]
[1742117065003,3.16173,1920.2,1920.1,1.04159]
[1742117066702,2.1202,1920.2,1920.1,1.04159]
[1742117067003,3.16173,1920.2,1920.1,1.04159]
[1742117067802,3.16173,1920.2,1920.1,2.41469]
[1742117069406,3.20780001,1920.3,1920.2,1.04153]
[1742117069603,3.20780001,1920.3,1920.2,3.19013]
[1742117069604,4.52360001,1920.3,1920.2,3.19013]
[1742117071507,3.20780001,1920.3,1920.2,3.19013]
[1742117071901,1e-08,1920.3,1920.2,3.19013]
[1742117078113,1e-08,1920.3,1920.2,6.48713]
[1742117084319,3.2078,1921.2,1920.3,2.6037]
[1742117084620,1.448,1920.9,1920.8,1.04121]
[1742117084821,1.448,1920.9,1920.8,4.36121]
[1742117085019,0.7168,1921.1,1921.0,1.0411]
[1742117085221,2.1648,1921.1,1921.0,1.0411]
[1742117085524,2.8881,1921.1,1921.0,1.0411]
[1742117085912,3.92914,1921.1,1921.0,1.0411]
[1742117086107,2.8881,1921.1,1921.0,1.0411]
[1742117092820,3.92914,1921.1,1921.0,1.0411]
[1742117093023,2.8881,1921.1,1921.0,1.0411]
[1742117093325,3.92914,1921.1,1921.0,1.0411]
[1742117094120,2.8881,1921.1,1921.0,1.0411]
[1742117094327,3.92914,1921.1,1921.0,1.0411]
[1742117097128,2.8881,1921.1,1921.0,1.0411]
[1742117097326,2.1648,1921.1,1921.0,1.0411]
[1742117097527,2.1648,1921.1,1921.0,1.7456]
[1742117100630,2.1648,1921.1,1921.0,2.402]
[1742117102131,2.1648,1921.1,1921.0,1.7456]
[1742117102330,2.8433,1921.1,1921.0,1.7456]
[1742117102822,2.8433,1921.1,1921.0,1.0411]
[1742117103432,3.88434,1921.1,1921.0,1.0411]
[1742117104527,2.8433,1921.1,1921.0,1.0411]
[1742117105134,3.88434,1921.1,1921.0,1.0411]
[1742117107334,3.88434,1921.1,1921.0,2.3744]
[1742117107630,1.0411,1921.0,1920.9,0.00781901]
[1742117107821,5.5729,1921.0,1920.9,0.00781901]
[1742117109732,1.04124,1920.8,1920.7,1.04123]
[1742117110037,2.47838,1920.9,1920.8,1.04121]
[1742117111333,1.04121,1920.8,1920.7,2.42803901]
[1742117111533,3.19871,1920.8,1920.7,2.42803901]
[1742117112834,2.1575,1920.8,1920.7,2.42803901]
[1742117113727,2.1575,1920.8,1920.7,3.12783901]
[1742117114835,3.19871,1920.8,1920.7,3.12783901]
[1742117115236,3.19871,1920.8,1920.7,1.38681901]
[1742117115731,6.40651,1920.8,1920.7,1.38681901]
[1742117116127,6.40651,1920.8,1920.7,0.00781901]
[1742117122738,6.40651,1920.8,1920.7,1e-08]
[1742117126344,8.90651,1920.8,1920.7,1e-08]
[1742117126544,12.21651,1920.8,1920.7,1e-08]
[1742117127143,13.19744038,1920.8,1920.7,1e-08]
[1742117131847,13.28211379,1920.8,1920.7,1e-08]
[1742117132548,14.07874822,1920.8,1920.7,1e-08]
[1742117132756,14.16341432,1920.8,1920.7,1e-08]
[1742117133345,14.16341646,1920.8,1920.7,1e-08]
[1742117137763,14.81579466,1920.8,1920.7,1e-08]
[1742117139367,11.60799466,1920.8,1920.7,1e-08]
[1742117139669,14.81579466,1920.8,1920.7,1e-08]
[1742117140160,14.73112642,1920.8,1920.7,1e-08]
[1742117140466,14.81579013,1920.8,1920.7,1e-08]
[1742117142666,14.81579131,1920.8,1920.7,1e-08]
[1742117144466,12.31579131,1920.8,1920.7,1e-08]
[1742117144662,11.66341311,1920.8,1920.7,1e-08]
[1742117145170,14.16341311,1920.8,1920.7,1e-08]
[1742117145370,14.81627511,1920.8,1920.7,1e-08]
[1742117145560,11.66341311,1920.8,1920.7,1e-08]
[1742117145761,14.81624173,1920.8,1920.7,1e-08]
[1742117145971,11.66339329,1920.8,1920.7,1e-08]
[1742117146363,11.66339329,1920.8,1920.7,0.65970001]
[1742117147666,10.9430952,1920.8,1920.7,0.65970001]
[1742117148361,10.85044822,1920.8,1920.7,0.65970001]
[1742117148868,6.11124822,1920.8,1920.7,0.65970001]
[1742117149076,8.53294038,1920.8,1920.7,0.65970001]
[1742117149766,7.55201,1920.8,1920.7,0.65970001]
[1742117150770,8.53294038,1920.8,1920.7,0.65970001]
[1742117159772,1.04126,1920.7,1920.6,1.4548]
[1742117159973,2.46026,1920.7,1920.6,1.4548]
[1742117160374,3.44119038,1920.7,1920.6,1.4548]
[1742117162386,8.48989398,1920.7,1920.2,1.0415]
[1742117162573,4.24928,1920.3,1920.2,1.0415]
[1742117163082,1.04148,1920.3,1920.2,1.0415]
[1742117164581,1.04147,1920.4,1920.3,1.04142]
[1742117165277,1.04153,1920.3,1920.2,1.04149]
[1742117165478,2.46283,1920.3,1920.2,2.40879]
[1742117165678,2.46283,1920.3,1920.2,3.12289]
[1742117168179,1.04153,1920.3,1920.2,3.12289]
[1742117170483,1.04153,1920.3,1920.2,3.12293]
[1742117170678,4.24933,1920.3,1920.2,3.12293]
[1742117171286,4.24933,1920.3,1920.2,1.3673]
[1742117171582,4.24933,1920.3,1920.2,2.40883]
[1742117171883,4.24933,1920.3,1920.2,1.3673]
[1742117172186,5.58573,1920.3,1920.2,1.3673]
[1742117173387,1.04153,1920.2,1920.1,0.00781901]
[1742117173587,3.11073,1920.2,1920.1,2.42670901]
[1742117173783,3.11073,1920.2,1920.1,1.38511901]
[1742117174381,3.11073,1920.2,1920.1,0.00781901]
[1742117175490,1.04164,1920.0,1919.9,1.3773]
[1742117175681,4.24944,1920.0,1919.9,1.3773]
[1742117175880,1.04205,1919.3,1919.1,6.5118]
[1742117176081,1.04186,1919.6,1919.5,1.4021]
[1742117176378,4.24966,1919.6,1919.5,1.4021]
[1742117176579,5.64536,1919.6,1919.5,1.4021]
[1742117176887,1.04218,1919.1,1919.0,1.04215]
[1742117177590,1.04218,1919.1,1918.9,0.6687]
[1742117177591,1.04218,1919.0,1918.9,0.6687]
[1742117177785,1.04218,1919.0,1918.9,1.71094]
[1742117178083,1.04218,1919.0,1918.9,0.6687]
[1742117178288,1.04218,1919.0,1918.9,2.0708]
[1742117178988,1.04224,1918.9,1918.8,3.2078]
[1742117179183,1.04236,1918.7,1918.6,1.04235]
[1742117180085,4.7195,1918.9,1918.5,2.40566]
[1742117180086,1.0424,1918.6,1918.5,2.40566]
[1742117180285,4.95593,1918.8,1918.5,1.3632]
[1742117180481,6.34103,1918.8,1918.7,1.04235]
[1742117180991,3.2078,1918.8,1918.7,1.04235]
[1742117181886,1.3851,1918.9,1918.5,1.3632]
[1742117182090,1.04236,1918.8,1918.7,1.04233]
[1742117182588,1.04237,1918.7,1918.6,1.04236]
[1742117182792,2.45327,1918.7,1918.6,1.04236]
[1742117183383,2.45327,1918.7,1918.6,1.76036]
[1742117183993,1.4109,1918.7,1918.6,1.76036]
[1742117184288,4.25009,1918.8,1918.7,1.04235]
[1742117184489,1.04228,1918.9,1918.8,1.04225]
[1742117185281,2.45311,1919.0,1918.9,1.04224]
[1742117185788,3.2078,1919.1,1918.7,4.63693]
[1742117185996,3.2078,1919.1,1919.0,1.04218]
[1742117186983,3.2078,1919.1,1919.0,1.70428]
[1742117187583,3.2078,1919.1,1919.0,3.11178]
[1742117189493,1.04209,1919.2,1919.1,1.04213]
[1742117189693,2.46789,1919.2,1919.1,1.04213]
[1742117190594,1.04213,1919.1,1919.0,3.11174]
[1742117190788,1.04211,1919.2,1919.1,1.0421]
[1742117191991,2.40301,1919.2,1919.1,1.0421]
[1742117193101,1.3609,1919.2,1919.1,1.0421]
[1742117194401,2.40298,1919.2,1919.1,1.0421]
[1742117194802,1.3609,1919.2,1919.1,1.0421]
[1742117196095,3.2078,1919.3,1919.2,1.04208]
[1742117196400,5.63302,1919.3,1919.2,1.04208]
[1742117197201,4.591,1919.3,1919.2,1.04208]
[1742117198305,4.591,1919.3,1919.2,2.45828]
[1742117206203,1.74084,1919.5,1919.4,1.04197]
[1742117206404,3.9012,1919.6,1919.5,1.04191]
[1742117206607,0.6934,1919.6,1919.5,1.04191]
[1742117206807,1.73526,1919.6,1919.5,1.04191]
[1742117207410,3.18736,1919.6,1919.5,1.04191]
[1742117207811,2.1455,1919.6,1919.5,1.04191]
[1742117208211,3.18736,1919.6,1919.5,1.04191]
[1742117209011,2.1455,1919.6,1919.5,1.04191]
[1742117210714,2.1455,1919.6,1919.5,4.36791]
[1742117211017,1.4521,1919.6,1919.5,4.36791]
[1742117211319,1.4521,1919.6,1919.5,5.05711]
[1742117212113,1.4521,1919.6,1919.5,6.43671]
[1742117213414,0.00781901,1919.7,1919.6,1.04186]
[1742117213616,0.00781901,1919.7,1919.6,3.12816]
[1742117215020,0.00781901,1919.7,1919.6,6.33596]
[1742117216721,0.00781901,1919.7,1919.6,3.12816]
[1742117217127,0.69001901,1919.7,1919.6,2.42146]
[1742117217519,2.05531901,1919.7,1919.6,2.42146]
[1742117217717,2.05531901,1919.7,1919.6,5.74746]
[1742117218319,2.05531901,1919.7,1919.6,4.36786]
[1742117219023,3.09711901,1919.7,1919.6,4.36786]
[1742117219228,2.05531901,1919.7,1919.6,4.36786]
[1742117219422,3.09711901,1919.7,1919.6,4.36786]
[1742117219819,3.09711901,1919.7,1919.6,1.04186]
[1742117223127,1.04186,1919.6,1919.5,4.36687]
[1742117223329,2.36626,1919.6,1919.5,4.36687]
[1742117225028,2.36626,1919.6,1919.5,1.04187]
[1742117225225,2.36626,1919.6,1919.3,4.6838]
[1742117225431,3.2078,1919.4,1919.1,5.9283]
[1742117225622,3.12825,1919.3,1919.2,1.04202]
[1742117226325,1.04208,1919.2,1919.1,1.04209]
[1742117226626,2.46298,1919.2,1919.1,4.36809]
[1742117226835,1.4209,1919.2,1919.1,4.36809]
[1742117227134,2.46298,1919.2,1919.1,4.36809]
[1742117227535,2.46298,1919.2,1919.1,3.326]
[1742117227831,1.04213,1919.1,1919.0,1.04214]
[1742117228028,3.03563,1919.1,1919.0,1.04214]
[1742117228836,1.04223,1919.0,1918.9,4.3672]
[1742117229029,3.04163,1919.0,1918.9,4.3672]
[1742117229435,1.9994,1919.0,1918.9,4.3672]
[1742117229927,1.9994,1919.0,1918.9,5.6939]
[1742117230134,1.9994,1919.0,1918.9,4.3672]
[1742117230634,3.04158,1919.0,1918.9,5.6865]
[1742117231134,1.9994,1919.0,1918.9,5.6865]
[1742117231731,3.04158,1919.0,1918.9,5.6865]
[1742117233836,3.04158,1919.0,1918.9,1.0422]
[1742117234139,1.04224,1918.9,1918.8,4.36625]
[1742117234337,2.49844,1918.9,1918.8,4.36625]
[1742117236825,2.49844,1918.9,1918.8,3.324]
[1742117237024,2.49844,1918.9,1918.8,4.36629]
[1742117238238,2.49844,1918.9,1918.8,3.324]
[1742117238434,1.04233,1918.8,1918.7,1.0423]
[1742117238733,1.3636,1918.8,1918.6,5.2586]
[1742117239034,1.3636,1918.8,1918.4,3.27004]
[1742117239035,1.04246,1918.5,1918.4,4.36647]
[1742117240625,1.04246,1918.5,1918.4,3.324]
[1742117240826,1.04246,1918.5,1918.4,1.04251]
[1742117242134,1.37021901,1918.6,1918.3,2.1041]
[1742117242335,3.12811,1918.4,1918.3,1.04255]
[1742117242837,1.04267,1918.2,1918.1,1.04264]
[1742117243040,4.69199,1918.4,1917.8,2.60709]
[1742117243041,5.2515,1918.3,1918.0,2.0149]
[1742117243235,1.361,1918.1,1918.0,1.70433]
[1742117243434,0.6827,1918.3,1918.2,1.04262]
[1742117243729,0.6827,1918.3,1918.0,0.6616]
[1742117243936,1.04264,1918.2,1918.1,1.04262]
[1742117244337,1.7253,1918.3,1918.2,1.04262]
[1742117244536,1.04264,1918.2,1918.1,1.04264]
[1742117244845,2.40364,1918.2,1918.1,1.04264]
[1742117245139,1.04267,1918.1,1918.0,0.6616]
[1742117245341,1.04267,1918.1,1917.9,1.04273]
[1742117245342,1.04275,1918.0,1917.9,1.04273]
[1742117245743,2.39995,1918.0,1917.9,1.04273]
[1742117246243,1.04278,1917.9,1917.8,4.25059]
[1742117246443,1.04278,1917.9,1917.7,3.347]
[1742117246444,1.04284,1917.8,1917.7,1.04287]
[1742117246745,3.2078,1917.8,1917.4,2.60764]
[1742117246949,2.0497,1917.7,1917.6,1.04291]
[1742117247247,1.3572,1917.7,1917.6,1.04291]
[1742117248144,2.60745,1917.6,1917.3,3.2078]
[1742117248352,1.04382,1916.0,1915.9,2.29480058]
[1742117248644,1.04392,1915.8,1915.7,19.20418226]
[1742117248843,4.25172,1915.8,1915.7,8.61921562]
[1742117249050,3.2078,1915.8,1915.7,5.80946277]
[1742117249248,4.67791124,1915.8,1915.7,5.80946277]
[1742117249440,4.67791124,1915.8,1914.9,32.56130969]
[1742117249441,4.5327962,1915.6,1914.1,48.84196453]
[1742117249748,1.0448,1914.2,1914.1,25.58787094]
[1742117250043,3.2078,1914.3,1914.1,21.96253991]
[1742117250434,3.2078,1914.3,1914.1,6.90453991]
[1742117250649,5.7078,1914.3,1912.7,52.91212825]
[1742117250838,5.7078,1914.3,1913.2,2.0882]
[1742117250839,3.2078,1913.5,1913.2,2.0882]
[1742117251041,3.2078,1913.8,1913.2,3.2078]
[1742117251340,3.2078,1914.1,1913.4,22.9702]
[1742117251541,3.2078,1914.5,1914.1,2.0882]
[1742117251741,3.2078,1914.5,1914.1,22.9586]
[1742117251936,3.2078,1914.5,1914.2,20.8704]
[1742117252139,3.2078,1914.3,1913.7,3.2078]
[1742117252341,3.2078,1914.3,1914.2,0.00783965]
[1742117252545,3.2078,1914.3,1914.2,2.09603965]
[1742117252745,3.2078,1914.3,1914.2,44.89323965]
[1742117252946,3.2078,1914.8,1914.2,2.09603965]
[1742117253149,1.04453,1914.7,1914.6,3.2078]
[1742117253542,1.0445,1914.8,1914.6,3.2078]
[1742117253742,3.2078,1915.1,1914.6,26.1664]
[1742117253951,4.859,1915.2,1915.0,3.2078]
[1742117254145,4.893,1915.5,1915.0,3.2078]
[1742117254340,1.05207965,1915.3,1915.2,3.2078]
[1742117254543,21.11624599,1915.3,1915.2,3.2078]
[1742117254744,21.11620599,1915.3,1915.2,3.2078]
[1742117254944,20.07200599,1915.3,1915.2,24.0782]
[1742117255249,20.07200599,1915.3,1915.2,3.2078]
[1742117255850,20.07200599,1915.3,1915.2,27.21065]
[1742117256149,20.07200599,1915.3,1915.2,3.2078]
[1742117256843,21.11620599,1915.3,1915.2,3.2078]
[1742117257650,20.07200599,1915.3,1915.2,3.2078]
[1742117257846,20.07200599,1915.3,1915.2,4.6549]
[1742117258050,21.11620599,1915.3,1915.2,4.6549]
[1742117258246,20.07200599,1915.3,1915.2,4.6549]
[1742117258445,21.11620599,1915.3,1915.2,4.6549]
[1742117258647,20.07200599,1915.3,1915.2,5.69915]
[1742117258849,20.07200599,1915.3,1915.2,7.78735]
[1742117259050,20.07200599,1915.3,1915.2,28.65775]
[1742117259246,20.07200599,1915.3,1915.2,49.53975]
[1742117259553,10.40544017,1915.3,1915.2,49.53975]
[1742117260049,9.31024017,1915.3,1915.2,49.53975]
[1742117260251,1.11497982,1915.3,1915.2,49.53975]
[1742117260550,1.11497982,1915.3,1915.2,55.04235058]
[1742117261253,1.11497982,1915.3,1915.2,49.53975]
[1742117264247,1.11497982,1915.3,1915.2,55.04235058]
[1742117264761,1.11497982,1915.3,1914.8,5.22233]
[1742117264762,2.61066,1915.2,1914.3,1.04471]
[1742117264946,3.2078,1915.1,1914.7,2.0882]
[1742117265150,1.04452,1914.7,1914.6,3.2078]
[1742117265454,1.04454,1914.7,1914.6,1.04457]
[1742117265649,1.04454,1914.7,1914.5,1.3877]
[1742117265650,3.2078,1914.9,1914.5,2.4323]
[1742117265855,1.4444,1914.8,1914.6,20.8704]
[1742117266051,3.2078,1914.9,1914.8,1.04447]
[1742117266252,4.25222,1914.9,1914.8,18.34450804]
[1742117266447,3.2078,1914.9,1914.8,20.8704]
[1742117266652,4.6522,1915.1,1915.0,1.04436]
[1742117266859,1.0444,1915.0,1914.8,1.04445]
[1742117267155,3.2078,1915.1,1915.0,1.04436]
[1742117267559,4.25211,1915.1,1915.0,22.3131]
[1742117267755,3.2078,1915.1,1915.0,23.35746]
[1742117267952,8.44423965,1915.4,1915.0,23.35746]
[1742117267953,0.00783965,1915.4,1915.0,41.70196804]
[1742117268154,1.0442,1915.3,1915.2,1.04422]
[1742117268357,10.97296387,1915.3,1915.2,1.4427]
[1742117268555,11.28896387,1915.3,1915.1,18.34450804]
[1742117268856,1.04446,1914.9,1914.8,1.04444]
[1742117269050,3.2078,1915.0,1914.7,39.21490804]
[1742117269255,3.2078,1914.8,1914.7,40.25942804]
[1742117269558,3.2078,1914.8,1914.7,24.89162862]
[1742117269754,3.2078,1914.8,1914.7,45.76202862]
[1742117270264,3.2078,1914.8,1914.7,31.65802885]
[1742117270761,1.3253,1914.9,1914.8,1.04447]
[1742117270955,3.2078,1914.9,1914.8,26.15537827]
[1742117271153,3.2078,1914.9,1914.8,21.91487]
[1742117271750,3.2078,1914.9,1914.8,26.15537827]
[1742117272561,3.2078,1914.9,1914.8,8.39249326]
[1742117273952,2.1124,1914.9,1914.8,8.39249326]
[1742117274358,3.2078,1914.9,1914.8,12.85062384]
[1742117274550,3.2078,1914.9,1914.8,9.65454557]
[1742117275051,3.2078,1914.9,1914.8,5.28493827]
[1742117277466,1.3922,1915.0,1914.9,1.04442]
[1742117277769,1.3922,1915.0,1914.9,5.28492827]
[1742117278465,2.43656,1915.0,1914.9,5.28492827]
[1742117278759,1.3922,1915.0,1914.9,1.04442]
[1742117279056,1.3922,1915.0,1914.7,2.61906965]
[1742117279057,1.3922,1915.0,1914.7,2.61132]
[1742117279261,1.3922,1915.0,1914.9,1.04442]
[1742117279457,2.43656,1915.0,1914.9,1.04442]
[1742117279656,1.3922,1915.0,1914.9,1.04442]
[1742117281558,2.43656,1915.0,1914.9,1.04442]
[1742117282870,1.3922,1915.0,1914.9,1.04442]
[1742117284670,2.43656,1915.0,1914.9,1.04442]
[1742117285165,1.04446,1914.9,1914.8,1.04444]
[1742117285361,1.04455,1914.7,1914.6,1.04454]
[1742117285565,4.25235,1914.7,1914.6,1.04454]
[1742117286267,5.81912,1914.7,1914.1,5.81992]
[1742117286466,3.2078,1914.5,1914.4,1.04466]
[1742117287063,0.00783965,1914.6,1914.5,1.04463]
[1742117287462,1.04465,1914.5,1914.4,1.04465]
[1742117287666,1.04472,1914.4,1914.3,1.04472]
[1742117287869,4.25248,1914.5,1914.4,1.04469]
[1742117288168,4.25248,1914.5,1914.0,5.81994]
[1742117288169,3.2078,1914.5,1914.0,3.2078]
[1742117288358,5.81969,1914.3,1913.9,1.04491]
[1742117288563,2.0661,1914.2,1914.1,1.04485]
[1742117288766,1.4012,1914.2,1914.1,1.04485]
[1742117289775,9.14658411,1914.5,1914.4,1.04469]
[1742117290271,5.93878411,1914.5,1914.4,5.68969]
[1742117291472,5.93878411,1914.5,1914.4,8.89749]
[1742117292573,7.33338411,1914.5,1914.4,8.89749]
[1742117292771,3.2078,1915.7,1914.6,5.213]